{"text_format":"3","workbook":"xlsx","n_sheets":2,"sheets":["Flux de trésorerie","Graphique de flux de trésorerie"],"not_rendered":{"charts":1,"defined_names":4},"read":"whole","date_system":"1900"}

{"sheet":"Flux de trésorerie","index":0,"n_rows":62,"n_cols":16,"rows_kept":62,"merged":[[0,1,0,15],[1,1,1,15]]}
[null,"ADATUM CORPORATION"]
[null,"Prévision de trésorerie d’une petite entreprise"]
[]
[null,"Date de début",{"$f":"TODAY()","v":"2023-03-17"}]
[null,"Alerte minimum solde trésorerie",null,{"$f":"Minimum_trésorerie","v":0},{"$f":"Minimum_trésorerie","v":0},0,0,0,0,0,0,0,0,0,0]
[]
[null,null,"Début","xx-janv","xx-févr","xx-mars","xx-avr","xx-mai","xx-juin","xx-juil","xx-août","xx-sept","xx-oct","xx-nov","xx-déc","Total"]
[null,"Trésorerie disponible (début du mois)",null,{"$f":"C54","v":0},0,0,0,0,0,0,0,0,0,0,0]
[]
[null,"ENCAISSEMENTS"," ","xx-janv","xx-févr","xx-mars","xx-avr","xx-mai","xx-juin","xx-juil","xx-août","xx-sept","xx-oct","xx-nov","xx-déc","Total"]
[null,"Ventes au comptant",{"$nulls":13},{"$f":"SUM(D11:O11)","v":0}]
[null,"Rendements et provisions",{"$nulls":13},0]
[null,"Collections sur compte débiteurs",{"$nulls":13},0]
[null,"Intérêt, autres revenus",{"$nulls":13},0]
[null,"Produits du prêt",{"$nulls":13},0]
[null,"Contributions propriétaire",{"$nulls":13},0]
[null,"TOTAL ENCAISSEMENTS",null,{"$f":"SUM(D11,D13:D16,(D12*-1))","v":0},{"$f":"SUM(E11,E13:E16,(E12*-1))","v":0},0,0,0,0,0,0,0,0,0,0,{"$f":"SUBTOTAL(109,Encaissements[Total])","v":0}]
[null,"Trésorerie totale disponible",{"$f":"(C8+Encaissements[[#Totals],[ ]])","v":0},{"$f":"(D8+Encaissements[[#Totals],[xx-janv]])","v":0},{"$f":"(E8+Encaissements[[#Totals],[xx-févr]])","v":0},{"$f":"(F8+Encaissements[[#Totals],[xx-mars]])","v":0},{"$f":"(G8+Encaissements[[#Totals],[xx-avr]])","v":0},{"$f":"(H8+Encaissements[[#Totals],[xx-mai]])","v":0},{"$f":"(I8+Encaissements[[#Totals],[xx-juin]])","v":0},{"$f":"(J8+Encaissements[[#Totals],[xx-juil]])","v":0},{"$f":"(K8+Encaissements[[#Totals],[xx-août]])","v":0},{"$f":"(L8+Encaissements[[#Totals],[xx-sept]])","v":0},{"$f":"(M8+Encaissements[[#Totals],[xx-oct]])","v":0},{"$f":"(N8+Encaissements[[#Totals],[xx-nov]])","v":0},{"$f":"(O8+Encaissements[[#Totals],[xx-déc]])","v":0}]
[]
[null,"DÉCAISSEMENTS"," ","xx-janv","xx-févr","xx-mars","xx-avr","xx-mai","xx-juin","xx-juil","xx-août","xx-sept","xx-oct","xx-nov","xx-déc","Total"]
[null,"Publicité",{"$nulls":13},{"$f":"SUM(D21:O21)","v":0}]
[null,"Commissions et frais",{"$nulls":13},0]
[null,"Main-d’œuvre contractuelle",{"$nulls":13},0]
[null,"Régimes d’avantages sociaux",{"$nulls":13},0]
[null,"Assurance (autres que la santé)",{"$nulls":13},0]
[null,"Dépenses intérêt",{"$nulls":13},0]
[null,"Ressources et fournitures (en variation stock)",{"$nulls":13},0]
[null,"Repas et loisirs",{"$nulls":13},0]
[null,"Intérêt d’emprunt immobilier",{"$nulls":13},0]
[null,"Frais de bureau",{"$nulls":13},0]
[null,"Autres dépenses intérêt",{"$nulls":13},0]
[null,"Plan retraite et partage de profit",{"$nulls":13},0]
[null,"Achats pour la revente",{"$nulls":13},0]
[null,"Loyer ou location",{"$nulls":13},0]
[null,"Loyer ou location: véhicules, équipements",{"$nulls":13},0]
[null,"Réparations et entretien",{"$nulls":13},0]
[null,"Fournitures (et non dans val)",{"$nulls":13},0]
[null,"Taxes et licences",{"$nulls":13},0]
[null,"Déplacements",{"$nulls":13},0]
[null,"Eau, électricité et gaz",{"$nulls":13},0]
[null,"Salaires (moins crédits emp.)",{"$nulls":13},0]
[null,"Autres frais",{"$nulls":13},0]
[null,"Autres frais",{"$nulls":13},0]
[null,"Autres frais",{"$nulls":13},0]
[null,"Divers",{"$nulls":13},0]
[null,"SOUS-TOTAL",null,{"$f":"SUBTOTAL(109,Dépenses[xx-janv])","v":0},{"$f":"SUBTOTAL(109,Dépenses[xx-févr])","v":0},{"$f":"SUBTOTAL(109,Dépenses[xx-mars])","v":0},{"$f":"SUBTOTAL(109,Dépenses[xx-avr])","v":0},{"$f":"SUBTOTAL(109,Dépenses[xx-mai])","v":0},{"$f":"SUBTOTAL(109,Dépenses[xx-juin])","v":0},{"$f":"SUBTOTAL(109,Dépenses[xx-juil])","v":0},{"$f":"SUBTOTAL(109,Dépenses[xx-août])","v":0},{"$f":"SUBTOTAL(109,Dépenses[xx-sept])","v":0},{"$f":"SUBTOTAL(109,Dépenses[xx-oct])","v":0},{"$f":"SUBTOTAL(109,Dépenses[xx-nov])","v":0},{"$f":"SUBTOTAL(109,Dépenses[xx-déc])","v":0},{"$f":"SUBTOTAL(109,Dépenses[Total])","v":0}]
[null,"DÉCAISSEMENTS"," ","xx-janv","xx-févr","xx-mars","xx-avr","xx-mai","xx-juin","xx-juil","xx-août","xx-sept","xx-oct","xx-nov","xx-déc","Total"]
[null,"Remboursement du capital d’un prêt",{"$nulls":13},{"$f":"SUM(D48:O48)","v":0}]
[null,"Achats en capitaux",{"$nulls":13},0]
[null,"Autres frais d’établissement",{"$nulls":13},0]
[null,"Compte sous séquestre",{"$nulls":13},0]
[null,"Retrait personnel du propriétaire",{"$nulls":13},0]
[null,"TOTAL DÉCAISSEMENTS",null,{"$f":"Dépenses[[#Totals],[xx-janv]]+SUBTOTAL(109,Décaissements[xx-janv])","v":0},{"$f":"Dépenses[[#Totals],[xx-févr]]+SUBTOTAL(109,Décaissements[xx-févr])","v":0},{"$f":"Dépenses[[#Totals],[xx-mars]]+SUBTOTAL(109,Décaissements[xx-mars])","v":0},{"$f":"Dépenses[[#Totals],[xx-avr]]+SUBTOTAL(109,Décaissements[xx-avr])","v":0},{"$f":"Dépenses[[#Totals],[xx-mai]]+SUBTOTAL(109,Décaissements[xx-mai])","v":0},{"$f":"Dépenses[[#Totals],[xx-juin]]+SUBTOTAL(109,Décaissements[xx-juin])","v":0},{"$f":"Dépenses[[#Totals],[xx-juil]]+SUBTOTAL(109,Décaissements[xx-juil])","v":0},{"$f":"Dépenses[[#Totals],[xx-août]]+SUBTOTAL(109,Décaissements[xx-août])","v":0},{"$f":"Dépenses[[#Totals],[xx-sept]]+SUBTOTAL(109,Décaissements[xx-sept])","v":0},{"$f":"Dépenses[[#Totals],[xx-oct]]+SUBTOTAL(109,Décaissements[xx-oct])","v":0},{"$f":"Dépenses[[#Totals],[xx-nov]]+SUBTOTAL(109,Décaissements[xx-nov])","v":0},{"$f":"Dépenses[[#Totals],[xx-déc]]+SUBTOTAL(109,Décaissements[xx-déc])","v":0},0]
[null,"Trésorerie disponible (fin de mois)",{"$f":"C18","v":0},{"$f":"D18-Décaissements[[#Totals],[xx-janv]]","v":0},{"$f":"E18-Décaissements[[#Totals],[xx-févr]]","v":0},{"$f":"F18-Décaissements[[#Totals],[xx-mars]]","v":0},{"$f":"G18-Décaissements[[#Totals],[xx-avr]]","v":0},{"$f":"H18-Décaissements[[#Totals],[xx-mai]]","v":0},{"$f":"I18-Décaissements[[#Totals],[xx-juin]]","v":0},{"$f":"J18-Décaissements[[#Totals],[xx-juil]]","v":0},{"$f":"K18-Décaissements[[#Totals],[xx-août]]","v":0},{"$f":"L18-Décaissements[[#Totals],[xx-sept]]","v":0},{"$f":"M18-Décaissements[[#Totals],[xx-oct]]","v":0},{"$f":"N18-Décaissements[[#Totals],[xx-nov]]","v":0},{"$f":"O18-Décaissements[[#Totals],[xx-déc]]","v":0}]
[]
[null,"AUTRES DONNÉES D’EXPLOITATION"," ","xx-janv","xx-févr","xx-mars","xx-avr","xx-mai","xx-juin","xx-juil","xx-août","xx-sept","xx-oct","xx-nov","xx-déc","Total"]
[null,"Volume des ventes (dollars)",{"$nulls":13},{"$f":"SUM(AutresDonnéesOpérationnelles[[#This Row],[xx-janv]:[xx-déc]])","v":0}]
[null,"Solde comptes clients",{"$nulls":13},{"$f":"SUM(AutresDonnéesOpérationnelles[[#This Row],[ ]:[xx-déc]])","v":0}]
[null,"Solde de mauvaises créances",{"$nulls":13},{"$f":"SUM(AutresDonnéesOpérationnelles[[#This Row],[ ]:[xx-déc]])","v":0}]
[null,"Inventaire disponible",{"$nulls":13},{"$f":"SUM(AutresDonnéesOpérationnelles[[#This Row],[ ]:[xx-déc]])","v":0}]
[null,"Comptes fournisseurs",{"$nulls":13},{"$f":"SUM(AutresDonnéesOpérationnelles[[#This Row],[ ]:[xx-déc]])","v":0}]
[null,"Amortissement",{"$nulls":13},{"$f":"SUM(AutresDonnéesOpérationnelles[[#This Row],[xx-janv]:[xx-déc]])","v":0}]

{"sheet":"Graphique de flux de trésorerie","index":1,"n_rows":2,"n_cols":7,"rows_kept":2,"merged":[[1,1,1,5],[53,2,53,3]]}
[]
[null,"Alerte de solde de trésorerie minimum :",{"$nulls":4},{"$f":"[0]!Minimum_trésorerie","v":{"v":0,"d":"0 €"}}]